bitfinex/quotes_SOLUSD_20250717
["timestamp","ask_amount","ask_price","bid_price","bid_amount"]
[1752790169969,9.27420352,176.4,176.31,16.78468397]
[1752790170182,0.67,176.39,176.31,23.14624554]
[1752790170393,0.67,176.39,176.34,26.0]
[1752790170555,29.84,176.44,176.37,9.27420352]
[1752790170556,5.66829157,176.42,176.37,9.27420352]
[1752790170761,5.66829157,176.42,176.37,9.96420352]
[1752790170985,6.33829157,176.42,176.37,9.96420352]
[1752790171481,29.84,176.45,176.38,1.2569577]
[1752790171682,29.84,176.45,176.42,9.27420352]
[1752790171993,29.84,176.45,176.39,0.69]
[1752790172158,5.66772781,176.44,176.39,0.69]
[1752790172363,6.33772781,176.44,176.41,9.27420352]
[1752790172564,5.66772781,176.44,176.41,9.27420352]
[1752790172982,5.66772781,176.44,176.39,0.69]
[1752790173189,31.4221,176.46,176.43,9.27420352]
[1752790173489,32.0921,176.46,176.42,9.27420352]
[1752790173675,32.0921,176.46,176.43,9.27420352]
[1752790174071,0.67,176.45,176.41,35.27420352]
[1752790174271,0.67,176.44,176.39,35.27420352]
[1752790174487,0.67,176.43,176.39,35.27420352]
[1752790174794,5.66829157,176.42,176.39,35.27420352]
[1752790174963,45.58961671,176.46,176.39,35.27420352]
[1752790174964,7.2564,176.49,176.41,35.27420352]
[1752790175167,5.66572237,176.5,176.48,9.27420352]
[1752790175367,10.88730352,176.51,176.42,17.35151312]
[1752790175580,0.67,176.49,176.46,9.27420352]
[1752790175986,0.67,176.49,176.42,18.04151312]
[1752790176167,0.67,176.49,176.46,9.27420352]
[1752790176490,15.6102947,176.49,176.43,9.27420352]
[1752790176693,6.33609118,176.49,176.42,0.69]
[1752790176985,36.17609118,176.49,176.44,9.27420352]
[1752790177705,0.67,176.48,176.42,0.69]
[1752790177892,2.2831,176.51,176.47,9.27420352]
[1752790178194,1.6131,176.51,176.49,9.27420352]
[1752790178393,29.84,176.52,176.47,0.69]
[1752790178567,30.51,176.52,176.48,9.27420352]
[1752790178771,36.17511621,176.52,176.48,9.27420352]
[1752790179590,15.38520352,176.54,176.49,9.27420352]
[1752790179591,5.66479232,176.53,176.49,9.27420352]
[1752790179766,29.82,176.53,176.5,9.27420352]
[1752790179966,0.67,176.52,176.45,26.69]
[1752790180180,0.67,176.52,176.48,9.27420352]
[1752790180381,0.67,176.52,176.49,9.27420352]
[1752790180691,35.48501154,176.53,176.46,1.25670066]
[1752790180894,35.48501154,176.53,176.49,9.27420352]
[1752790181074,29.82,176.53,176.5,9.27420352]
[1752790181279,5.66453082,176.54,176.51,9.27420352]
[1752790181680,37.0972587,176.55,176.51,9.27420352]
[1752790181874,37.5272587,176.55,176.51,9.27420352]
[1752790182197,9.27420352,176.52,176.46,0.56670066]
[1752790182383,47.03468397,176.54,176.41,9.96420352]
[1752790182384,9.27420352,176.47,176.41,9.96420352]
[1752790182692,9.27420352,176.46,176.41,0.69]
[1752790182987,9.27420352,176.46,176.4,9.30420352]
[1752790183194,9.70420352,176.46,176.4,9.30420352]
[1752790183398,0.43,176.45,176.4,0.03]
[1752790183696,9.70420352,176.44,176.4,0.03]
[1752790183898,5.66797029,176.43,176.4,0.03]
[1752790184908,9.27420352,176.45,176.4,0.72]
[1752790185096,0.43,176.45,176.4,0.72]
[1752790185276,44.76150513,176.46,176.41,0.69]
[1752790185482,0.43,176.53,176.45,9.27420352]
[1752790185789,0.43,176.53,176.49,9.27420352]
[1752790185790,5.66475953,176.53,176.49,9.27420352]
[1752790185994,29.82,176.54,176.51,9.27420352]
[1752790185995,35.48449846,176.54,176.51,9.27420352]
[1752790186181,35.48449846,176.54,176.46,6.23363857]
[1752790186182,35.48449846,176.54,176.52,9.27420352]
[1752790186381,35.48449846,176.54,176.51,9.27420352]
[1752790186680,1.6295,176.56,176.51,9.27420352]
[1752790186681,7.29338602,176.56,176.52,9.27420352]
[1752790186881,16.22850352,176.6,176.54,9.27420352]
[1752790187104,0.67,176.58,176.54,9.27420352]
[1752790187282,6.33315551,176.58,176.54,9.27420352]
[1752790187478,39.76420352,176.57,176.49,26.0]
[1752790187695,39.76420352,176.57,176.51,9.27420352]
[1752790187893,5.663797,176.56,176.51,9.27420352]
[1752790188093,6.333797,176.56,176.51,9.27420352]
[1752790189007,35.483797,176.56,176.53,9.27420352]
[1752790191093,5.66315551,176.58,176.54,9.27420352]
[1752790191315,29.82,176.58,176.55,0.66]
[1752790191596,29.82,176.58,176.52,0.66]
[1752790191798,30.49,176.58,176.54,9.27420352]
[1752790192005,15.60767976,176.57,176.51,9.27420352]
[1752790192305,6.33347624,176.57,176.52,9.27420352]
[1752790192496,0.67,176.56,176.52,9.27420352]
[1752790193105,5.66347624,176.57,176.52,9.27420352]
[1752790193276,9.27420352,176.54,176.43,0.56679702]
[1752790193479,39.76420352,176.53,176.47,9.27420352]
[1752790193677,29.82,176.52,176.5,9.27420352]
[1752790194098,35.48509823,176.52,176.5,9.27420352]
[1752790194496,29.82,176.52,176.5,9.27420352]
[1752790195499,0.67,176.51,176.45,26.0]
[1752790195803,5.66466752,176.54,176.5,9.27420352]
[1752790195981,0.67,176.55,176.49,9.27420352]
[1752790195982,5.66508044,176.52,176.49,9.27420352]
[1752790196175,29.8,176.53,176.5,9.27420352]
[1752790196511,30.47,176.53,176.49,9.27420352]
[1752790197000,5.66473739,176.54,176.51,9.27420352]
[1752790197178,29.8,176.52,176.49,9.27420352]
[1752790197378,29.8,176.52,176.5,9.27420352]
[1752790198006,35.46524218,176.52,176.49,9.93420352]
[1752790198203,35.46524218,176.52,176.49,9.27420352]
[1752790198503,29.8,176.52,176.49,9.27420352]
[1752790198677,29.8,176.52,176.5,9.27420352]
[1752790199191,29.8,176.52,176.49,9.93420352]
[1752790199994,29.8,176.52,176.5,9.93420352]
[1752790200192,29.8,176.53,176.51,9.93420352]
[1752790200397,29.8,176.54,176.51,9.93420352]
[1752790200590,29.8,176.54,176.52,9.93420352]
[1752790200783,29.8,176.54,176.49,5.66594106]
[1752790201001,0.67,176.53,176.47,26.0]
[1752790201307,9.94420352,176.53,176.47,35.27420352]
[1752790201803,0.67,176.53,176.47,35.27420352]
[1752790202003,9.94420352,176.53,176.47,35.27420352]
[1752790202301,5.66508044,176.52,176.47,35.27420352]
[1752790202501,5.66508044,176.52,176.48,9.27420352]
[1752790202729,29.8,176.51,176.48,9.93420352]
[1752790203281,29.8,176.51,176.46,9.93420352]
[1752790203588,0.67,176.5,176.46,9.27420352]
[1752790203798,0.67,176.5,176.44,0.66]
[1752790204097,5.6660434,176.49,176.44,9.27420352]
[1752790204297,30.47,176.48,176.42,0.66]
[1752790204688,9.94420352,176.47,176.41,0.03]
[1752790205095,0.67,176.47,176.41,0.03]
[1752790205297,29.8,176.46,176.41,9.30420352]
[1752790205593,0.67,176.45,176.41,0.03]
[1752790206086,5.66732785,176.45,176.41,0.03]
[1752790206288,0.67,176.44,176.41,0.03]
[1752790206691,29.8,176.43,176.41,0.03]
[1752790208208,35.46823868,176.43,176.41,0.03]
[1752790208706,29.8,176.42,176.41,0.03]
[1752790209698,29.82,176.44,176.41,9.30420352]
[1752790209895,29.82,176.44,176.41,9.96420352]
[1752790210292,35.48774873,176.44,176.41,0.03]
[1752790211488,36.15774873,176.44,176.41,0.03]
[1752790213207,6.33774873,176.44,176.41,0.03]
[1752790213409,29.82,176.43,176.41,0.03]
[1752790213718,5.66774873,176.44,176.41,9.30420352]
[1752790213890,29.82,176.43,176.41,0.03]
[1752790214824,29.82,176.44,176.42,0.66]
[1752790215111,29.82,176.44,176.41,9.30420352]
[1752790215413,29.82,176.44,176.41,0.03]
[1752790215615,0.67,176.5,176.43,9.27420352]
[1752790215821,0.67,176.5,176.44,9.27420352]
[1752790215822,29.82,176.49,176.44,9.27420352]
[1752790216118,30.49,176.49,176.44,9.93420352]
[1752790216911,36.15612444,176.49,176.44,9.93420352]
[1752790217114,0.67,176.48,176.43,9.27420352]
[1752790217796,0.67,176.48,176.41,5.69835885]
[1752790217797,9.94420352,176.47,176.41,9.96420352]
[1752790217998,29.82,176.46,176.41,0.03]
[1752790218223,5.66612444,176.49,176.42,0.66]
[1752790218418,29.82,176.48,176.44,9.27420352]
[1752790218625,0.67,176.47,176.41,35.30420352]
[1752790218922,9.94420352,176.47,176.41,35.30420352]
[1752790219105,5.66700668,176.46,176.41,35.30420352]
[1752790219304,29.8,176.45,176.41,36.02420352]
[1752790219706,29.8,176.45,176.42,9.27420352]
[1752790220011,6.35646361,176.48,176.42,9.99420352]
[1752790220211,29.8,176.47,176.43,9.99420352]
[1752790220517,29.8,176.47,176.43,0.72]
[1752790221226,36.15697646,176.47,176.42,9.27420352]
[1752790221400,29.8,176.47,176.43,9.99420352]
[1752790221723,29.8,176.46,176.43,9.99420352]
[1752790222898,45.43126865,176.46,176.41,26.03]
[1752790223126,0.69,176.45,176.41,0.03]
[1752790223724,29.8,176.44,176.41,9.30420352]
[1752790224225,30.49,176.44,176.41,0.03]
[1752790224817,36.1577148,176.44,176.41,0.03]
[1752790225118,29.8,176.44,176.41,0.03]
[1752790225325,29.8,176.44,176.42,0.72]
[1752790225622,29.8,176.44,176.42,9.99420352]
[1752790226116,5.66668555,176.47,176.42,9.99420352]
[1752790226722,29.8,176.46,176.42,9.99420352]
[1752790226919,30.49,176.46,176.42,9.27420352]
[1752790227117,30.49,176.46,176.41,9.30420352]
[1752790227829,6.357309,176.46,176.41,9.30420352]
[1752790228017,29.8,176.45,176.41,9.30420352]
[1752790228410,29.8,176.45,176.42,9.27420352]
[1752790228611,29.8,176.45,176.42,9.99420352]
[1752790228918,5.66677374,176.47,176.42,6.50129784]
[1752790229129,29.8,176.46,176.42,6.50129784]
[1752790229936,5.66677374,176.47,176.42,5.78129784]
[1752790230110,29.8,176.46,176.42,0.72]
[1752790230307,1.665,176.49,176.44,5.78129784]
[1752790230514,29.8,176.46,176.44,6.50129784]
[1752790230719,29.8,176.46,176.43,5.78129784]
[1752790232345,0.06,176.49,176.41,5.69846917]
[1752790232523,30.49,176.48,176.43,5.78129784]
[1752790232748,29.8,176.48,176.43,5.78129784]
[1752790233031,0.69,176.47,176.43,5.78129784]
[1752790233235,0.69,176.46,176.42,5.78129784]
[1752790233545,35.46636446,176.48,176.41,5.69846917]
[1752790233546,29.8,176.45,176.43,6.50129784]
[1752790233828,5.66636446,176.48,176.43,6.50129784]
[1752790233829,5.66636446,176.48,176.43,5.78129784]
[1752790234128,5.66636446,176.48,176.42,5.6681519]
[1752790234129,29.8,176.47,176.45,5.78129784]
[1752790234326,30.49,176.47,176.43,5.78129784]
[1752790234934,0.69,176.46,176.42,31.78129784]
[1752790235232,0.69,176.46,176.43,5.78129784]
[1752790235426,29.8,176.47,176.43,5.78129784]
[1752790235633,0.69,176.46,176.43,5.78129784]
[1752790236134,6.47129784,176.45,176.41,0.03]
[1752790236333,5.78129784,176.43,176.41,0.03]
[1752790236628,0.69,176.44,176.41,0.03]
[1752790237022,29.8,176.43,176.41,0.03]
[1752790237229,29.8,176.42,176.41,0.03]
[1752790237425,0.69,176.44,176.41,0.03]
[1752790237743,29.8,176.43,176.41,0.03]
[1752790237934,29.8,176.43,176.41,5.81129784]
[1752790238138,5.66663645,176.48,176.42,6.50129784]
[1752790238436,29.8,176.47,176.43,5.78129784]
[1752790238812,5.66663645,176.48,176.44,5.78129784]
[1752790239020,29.8,176.47,176.44,6.50129784]
[1752790239328,5.66663645,176.48,176.44,6.50129784]
[1752790239532,29.8,176.47,176.43,5.78129784]
[1752790239730,29.8,176.47,176.43,6.50129784]
[1752790240038,5.66638186,176.48,176.43,5.78129784]
[1752790240226,29.8,176.47,176.44,6.50129784]
[1752790240836,5.66638186,176.48,176.41,32.41839394]
[1752790241140,36.15693727,176.47,176.41,32.41839394]
[1752790241439,36.15693727,176.47,176.43,5.78129784]
[1752790241626,36.15693727,176.47,176.42,5.78129784]
[1752790241828,0.69,176.46,176.41,26.03]
[1752790242134,0.69,176.46,176.41,32.53129784]
[1752790242534,0.69,176.46,176.42,5.78129784]
[1752790242731,0.69,176.46,176.41,26.75]
[1752790242933,35.46693727,176.47,176.43,5.78129784]
[1752790243137,35.46693727,176.47,176.41,0.03]
[1752790243138,6.47129784,176.46,176.41,0.03]
[1752790243445,0.69,176.46,176.41,0.03]
[1752790243627,0.69,176.45,176.41,0.03]
[1752790243946,29.8,176.44,176.41,0.03]
[1752790245333,29.8,176.44,176.41,5.81129784]
[1752790245532,0.06,176.49,176.43,5.78129784]
[1752790245838,29.8,176.48,176.44,5.78129784]
[1752790246052,29.8,176.48,176.44,6.50129784]
[1752790246228,29.8,176.47,176.45,5.78129784]
[1752790246426,29.8,176.47,176.46,5.78129784]
[1752790246844,0.06,176.48,176.46,5.78129784]
[1752790247023,29.86,176.48,176.46,0.72]
[1752790247223,29.86,176.48,176.46,5.78129784]
[1752790247835,29.86,176.48,176.45,5.78129784]
[1752790248841,29.86,176.48,176.45,11.44858109]
[1752790249166,30.56,176.48,176.43,5.66797029]
[1752790249327,0.06,176.48,176.47,5.78129784]
[1752790250543,0.06,176.48,176.46,31.78129784]
[1752790250732,30.48,176.47,176.42,0.69]
[1752790250933,29.78,176.47,176.44,5.78129784]
[1752790252049,29.78,176.47,176.45,5.78129784]
[1752790252757,35.44681541,176.47,176.43,32.47129784]
[1752790252951,35.44681541,176.47,176.43,26.0]
[1752790253157,0.7,176.46,176.43,26.0]
[1752790253332,5.78129784,176.45,176.41,0.03]
[1752790253533,30.48,176.44,176.41,0.03]
[1752790253750,29.78,176.44,176.41,0.03]
[1752790253941,29.78,176.44,176.41,6.50129784]
[1752790254148,35.4476951,176.44,176.41,6.50129784]
[1752790254333,5.6676951,176.44,176.41,0.03]
[1752790254539,35.4476951,176.44,176.41,0.03]
[1752790255279,6.3676951,176.44,176.41,0.03]
[1752790255441,29.78,176.44,176.41,5.81129784]
[1752790255944,29.78,176.44,176.41,6.50129784]
[1752790256856,29.78,176.44,176.42,5.78129784]
[1752790257162,7.33281851,176.46,176.42,5.78129784]
[1752790257342,29.78,176.45,176.42,5.78129784]
[1752790257861,29.78,176.45,176.42,6.47129784]
[1752790258062,29.78,176.45,176.42,12.13958184]
[1752790258362,29.78,176.45,176.43,6.47129784]
[1752790258561,29.78,176.46,176.44,5.78129784]
[1752790258860,29.78,176.46,176.43,6.47129784]
[1752790260760,36.14709131,176.46,176.41,5.81129784]
[1752790261069,0.7,176.45,176.41,5.81129784]
[1752790262862,6.36750062,176.45,176.41,5.81129784]
[1752790263049,0.7,176.44,176.41,0.03]
[1752790263255,29.78,176.43,176.41,0.03]
[1752790263545,30.48,176.43,176.41,0.03]
[1752790263743,29.78,176.43,176.41,5.81129784]
[1752790264245,29.78,176.44,176.41,0.72]
[1752790264747,30.48,176.44,176.41,0.03]
[1752790264954,6.36797029,176.43,176.41,0.03]
[1752790266068,5.66797029,176.43,176.41,0.03]
[1752790266369,30.48,176.42,176.41,0.03]
[1752790266748,29.78,176.42,176.41,0.03]
[1752790267068,35.44829157,176.42,176.41,0.03]
[1752790267272,36.14829157,176.42,176.41,0.03]
[1752790270761,41.92958941,176.42,176.41,0.03]
[1752790270974,36.14829157,176.42,176.41,0.03]
[1752790271845,41.92958941,176.42,176.41,0.03]
[1752790272246,41.92958941,176.42,176.41,1e-08]
[1752790273950,6.36829157,176.42,176.41,1e-08]
[1752790274161,35.44829157,176.42,176.41,1e-08]
[1752790274375,69.46138941,176.42,176.4,1e-08]
[1752790274668,30.48,176.41,176.35,5.78129784]
[1752790274879,35.56129784,176.41,176.34,6.47129784]
[1752790275077,6.48129784,176.4,176.34,6.47129784]
[1752790275293,29.78,176.39,176.34,6.47129784]
[1752790275487,5.66829157,176.42,176.38,5.78129784]
[1752790275666,29.78,176.41,176.37,5.78129784]
[1752790275981,11.45023208,176.4,176.35,0.69]
[1752790276276,29.78,176.39,176.35,6.47129784]
[1752790276651,29.78,176.39,176.36,0.69]
[1752790277385,5.66957704,176.38,176.35,5.78129784]
[1752790277688,5.66935189,176.39,176.37,0.69]
[1752790277971,29.78,176.38,176.37,0.69]
[1752790278664,5.66935189,176.39,176.37,0.69]
[1752790278978,29.78,176.44,176.38,32.47129784]
[1752790279186,35.447729,176.44,176.41,5.78129784]
[1752790279479,0.69,176.43,176.39,0.67]
[1752790279659,29.78,176.42,176.39,6.45129784]
[1752790279857,29.78,176.42,176.41,5.78129784]
[1752790280058,29.78,176.42,176.4,6.45129784]
[1752790280979,29.78,176.43,176.41,5.78129784]
[1752790281151,29.78,176.43,176.41,6.45129784]
[1752790281588,5.72740945,176.45,176.41,6.45129784]
[1752790281771,29.76,176.44,176.41,6.45129784]
[1752790282385,29.76,176.44,176.41,0.67]
[1752790282590,29.76,176.44,176.41,6.45129784]
[1752790282792,29.76,176.44,176.38,26.67]
[1752790282992,0.69,176.43,176.4,5.78129784]
[1752790283178,29.76,176.42,176.4,5.78129784]
[1752790283379,29.76,176.42,176.41,5.78129784]
[1752790283591,29.76,176.42,176.38,26.67]
[1752790283796,29.76,176.42,176.4,5.78129784]
[1752790283979,29.76,176.42,176.39,6.45129784]
[1752790285395,35.42839237,176.42,176.39,6.45129784]
[1752790286275,36.11839237,176.42,176.36,26.67]
[1752790286482,36.11839237,176.42,176.38,5.78129784]
[1752790286680,6.35839237,176.42,176.38,5.78129784]
[1752790286871,29.76,176.41,176.38,5.78129784]
[1752790287085,29.76,176.4,176.38,6.45129784]
[1752790287303,35.42899579,176.4,176.38,5.78129784]
[1752790287508,35.42899579,176.4,176.36,0.67]
[1752790287682,35.42899579,176.4,176.37,5.78129784]
[1752790288188,35.42899579,176.4,176.37,6.45129784]
[1752790288388,29.76,176.39,176.38,5.78129784]
[1752790288588,29.76,176.39,176.38,6.45129784]
[1752790288977,29.76,176.41,176.38,6.45129784]
[1752790289203,5.66833809,176.42,176.39,6.45129784]
[1752790289498,5.66764905,176.44,176.4,0.67]
[1752790289682,29.76,176.43,176.4,6.45129784]
[1752790289875,29.76,176.42,176.4,6.45129784]
[1752790290880,5.66764905,176.44,176.4,6.45129784]
[1752790291081,29.76,176.43,176.4,6.45129784]
[1752790291477,29.76,176.43,176.41,0.67]
[1752790292278,5.66803685,176.43,176.39,0.67]
[1752790292504,29.76,176.42,176.4,6.45129784]
[1752790292711,0.06,176.45,176.41,6.45129784]
[1752790292881,29.76,176.44,176.42,6.45129784]
[1752790293082,29.76,176.44,176.42,0.67]
[1752790293479,29.76,176.44,176.41,5.78129784]
[1752790293715,29.76,176.44,176.41,0.67]
[1752790293905,29.76,176.44,176.41,6.45129784]
[1752790294215,0.06,176.45,176.43,5.78129784]
[1752790294496,29.82,176.45,176.43,0.67]
[1752790296083,0.06,176.45,176.43,6.45129784]
[1752790296297,0.06,176.45,176.44,6.45129784]
[1752790296599,0.06,176.45,176.44,23.23598181]
[1752790297104,0.06,176.45,176.44,17.45468397]
[1752790297299,0.06,176.45,176.44,49.23598181]
[1752790297810,0.06,176.48,176.47,42.78468397]
[1752790297979,0.06,176.48,176.47,32.34796639]
[1752790298320,0.06,176.48,176.45,26.67]
[1752790298484,0.06,176.48,176.45,32.45129784]
[1752790298684,0.06,176.48,176.43,6.45129784]
[1752790298992,30.49,176.48,176.43,6.45129784]
[1752790299616,30.49,176.48,176.43,5.78129784]
[1752790299906,30.49,176.48,176.44,0.67]
[1752790300100,36.15637281,176.48,176.44,0.67]
[1752790300336,36.15637281,176.48,176.42,6.33820209]
[1752790300482,35.46637281,176.48,176.43,5.78129784]
[1752790300687,29.8,176.48,176.44,0.67]
[1752790301716,35.46640512,176.48,176.44,0.67]
[1752790302007,36.15640512,176.48,176.44,0.67]
[1752790304694,36.15640512,176.48,176.43,5.78129784]
[1752790304695,0.69,176.47,176.42,6.45129784]
[1752790305013,41.24770296,176.48,176.42,6.45129784]
[1752790305014,0.69,176.46,176.42,6.45129784]
[1752790305400,0.69,176.45,176.4,31.78129784]
[1752790305694,5.72640512,176.48,176.4,31.78129784]
[1752790305695,0.69,176.47,176.43,5.78129784]
[1752790305900,29.74,176.47,176.43,6.45129784]
[1752790306096,0.06,176.48,176.44,6.45129784]
[1752790306293,0.06,176.48,176.46,5.78129784]
[1752790306796,0.06,176.48,176.46,6.45129784]
[1752790307001,0.06,176.48,176.47,0.67]
[1752790307305,0.06,176.48,176.47,7.01796639]
[1752790308313,0.06,176.48,176.47,6.9033541]
[1752790308507,0.06,176.48,176.47,12.68465194]
[1752790309827,0.06,176.48,176.47,55.46933591]
[1752790310712,0.06,176.48,176.47,29.46933591]
[1752790311621,0.06,176.48,176.47,55.46933591]
[1752790311805,0.06,176.48,176.47,85.18933591]
[1752790312425,0.06,176.49,176.47,85.18933591]
[1752790312600,0.06,176.49,176.48,0.72]
[1752790312800,0.06,176.49,176.48,95.30129784]
[1752790313197,0.06,176.49,176.48,109.06612488]
[1752790313402,0.06,176.49,176.48,114.84742272]
[1752790313831,0.06,176.56,176.49,16.78468397]
[1752790314034,26.06,176.56,176.55,5.78129784]
[1752790314193,0.06,176.56,176.54,5.78129784]
[1752790314518,0.06,176.56,176.53,5.78129784]
[1752790315298,0.66,176.55,176.51,0.72]
[1752790315522,0.66,176.55,176.52,5.78129784]
[1752790315721,0.66,176.54,176.48,89.52]
[1752790316028,6.44129784,176.54,176.48,100.96760553]
[1752790316398,29.72,176.53,176.48,100.96760553]
[1752790316614,30.38,176.53,176.48,100.96760553]
[1752790316803,30.38,176.53,176.48,95.30129784]
[1752790317103,0.66,176.52,176.46,6.38694165]
[1752790317314,6.44129784,176.52,176.46,11.44823949]
[1752790317513,0.66,176.51,176.46,5.78129784]
[1752790317693,0.66,176.5,176.46,5.78129784]
[1752790317887,0.66,176.5,176.46,6.50129784]
[1752790318107,5.78129784,176.52,176.46,6.50129784]
[1752790318305,35.38490091,176.53,176.48,5.78129784]
[1752790318617,30.38,176.53,176.49,0.72]
[1752790318992,29.72,176.53,176.5,5.78129784]
[1752790319199,0.06,176.56,176.48,5.66623997]
[1752790319200,0.06,176.56,176.51,6.50129784]
[1752790319418,0.06,176.56,176.52,5.78129784]
[1752790319603,0.06,176.56,176.52,6.50129784]
[1752790319803,0.06,176.56,176.52,5.78129784]
[1752790320033,0.06,176.56,176.52,6.50129784]
[1752790320806,0.06,176.56,176.53,5.78129784]
[1752790321031,0.06,176.56,176.54,5.78129784]
[1752790321219,0.06,176.56,176.54,6.50129784]
[1752790321537,0.06,176.56,176.52,5.66503819]
[1752790321538,0.06,176.56,176.53,5.78129784]
[1752790321832,0.06,176.56,176.55,5.78129784]
[1752790322333,0.06,176.56,176.55,6.50129784]
[1752790322513,0.06,176.56,176.55,5.78129784]
[1752790322911,0.06,176.56,176.55,6.50129784]
[1752790323225,0.06,176.57,176.55,17.50468397]
[1752790323419,0.1,176.59,176.55,17.50468397]
[1752790323420,0.1,176.66,176.62,42.78468397]
[1752790323621,0.1,176.66,176.63,16.78468397]
[1752790323838,0.1,176.66,176.65,5.78129784]
[1752790324008,0.1,176.66,176.64,0.72]
[1752790324215,0.1,176.66,176.64,5.78129784]
[1752790324426,0.1,176.66,176.62,6.50129784]
[1752790324635,0.76,176.66,176.63,5.78129784]
[1752790324812,0.1,176.66,176.63,5.78129784]
[1752790325129,0.1,176.66,176.64,5.78129784]
[1752790325430,0.1,176.66,176.65,5.78129784]
[1752790326042,0.1,176.66,176.64,6.50129784]
[1752790326332,0.1,176.66,176.63,5.78129784]
[1752790326837,0.1,176.66,176.65,5.78129784]
[1752790328436,0.1,176.66,176.64,0.72]
[1752790328437,0.1,176.66,176.64,5.78129784]
[1752790328615,0.1,176.66,176.65,5.78129784]
[1752790329023,0.1,176.66,176.65,0.72]
[1752790329237,0.1,176.66,176.65,6.50129784]
[1752790329645,0.1,176.66,176.65,5.78129784]
[1752790329947,0.1,176.66,176.65,0.72]
[1752790330127,0.1,176.66,176.65,6.50129784]
[1752790330642,0.1,176.66,176.64,5.78129784]
[1752790330846,0.1,176.66,176.63,5.78129784]
[1752790331018,0.76,176.66,176.63,5.78129784]
[1752790331217,0.76,176.66,176.57,45.35895888]
[1752790331218,0.1,176.66,176.65,5.78129784]
[1752790331841,0.1,176.66,176.64,5.78129784]
[1752790332020,0.1,176.66,176.65,5.78129784]
[1752790332936,0.1,176.66,176.65,6.50129784]
[1752790333733,0.1,176.66,176.65,0.72]
[1752790333930,0.1,176.66,176.65,6.50129784]
[1752790335519,0.1,176.66,176.65,12.16220924]
[1752790335827,0.1,176.66,176.65,28.94689321]
[1752790337338,0.1,176.66,176.65,23.16559537]
[1752790337546,0.1,176.66,176.65,6.50129784]
[1752790337748,0.1,176.66,176.65,0.72]
[1752790338048,0.1,176.66,176.65,12.16220924]
[1752790338250,0.1,176.66,176.65,6.50129784]
[1752790338750,0.1,176.66,176.65,12.16220924]
[1752790339124,0.1,176.66,176.65,6.3809114]
[1752790339450,0.1,176.66,176.64,3.44067147]
[1752790339451,0.1,176.66,176.64,0.56612318]
[1752790339639,0.76,176.66,176.61,0.69]
[1752790339825,6.44129784,176.65,176.6,5.78129784]
[1752790340020,0.66,176.65,176.61,5.78129784]
[1752790340334,29.66,176.65,176.61,5.78129784]
[1752790340532,5.66123188,176.64,176.59,0.69]
[1752790340748,0.66,176.64,176.6,5.78129784]
[1752790340925,29.66,176.65,176.61,5.78129784]
[1752790341129,29.66,176.65,176.61,6.47129784]
[1752790341430,29.66,176.65,176.62,5.78129784]
[1752790341943,0.76,176.66,176.62,6.47129784]
[1752790342128,5.76065614,176.66,176.63,5.78129784]
[1752790342448,35.42065614,176.66,176.62,6.47129784]
[1752790342924,36.08065614,176.66,176.62,5.78129784]
[1752790344020,35.42065614,176.66,176.6,0.69]
[1752790344225,41.86195398,176.66,176.6,0.69]
[1752790344438,41.86195398,176.66,176.61,5.78129784]
[1752790344754,0.66,176.65,176.62,5.78129784]
[1752790345446,0.1,176.66,176.63,6.47129784]
[1752790345647,0.1,176.66,176.65,5.78129784]
[1752790346335,0.1,176.66,176.65,6.47129784]
[1752790346728,0.1,176.66,176.65,12.69830038]